bitfinex/quotes_SOLUSD_20250809
["timestamp","ask_amount","ask_price","bid_price","bid_amount"]
[1754755157918,5.82127035,180.11,180.1,0.06]
[1754755161203,5.82127035,180.12,180.1,0.06]
[1754755161410,5.82127035,180.12,180.1,0.78]
[1754755161609,5.82127035,180.11,180.1,0.06]
[1754755161808,6.48127035,180.11,180.1,0.06]
[1754755162705,5.82127035,180.11,180.1,0.06]
[1754755165850,6.48127035,180.11,180.1,0.06]
[1754755167005,0.66,180.13,180.1,0.06]
[1754755167315,5.82127035,180.12,180.1,0.06]
[1754755167502,5.82127035,180.11,180.1,0.06]
[1754755167701,5.82127035,180.12,180.1,0.06]
[1754755167907,5.82127035,180.12,180.1,0.78]
[1754755168129,0.66,180.14,180.1,0.78]
[1754755168334,5.82127035,180.13,180.1,0.78]
[1754755168950,5.82127035,180.13,180.11,0.72]
[1754755169317,5.82127035,180.13,180.11,6.27210033]
[1754755170128,6.53127035,180.13,180.1,5.6123878]
[1754755170438,5.82127035,180.11,180.1,0.06]
[1754755170813,6.53127035,180.11,180.1,0.06]
[1754755171012,6.56127035,180.11,180.1,0.06]
[1754755173442,12.11343291,180.11,180.1,0.06]
[1754755174539,12.11343291,180.11,180.09,0.06]
[1754755174540,6.29216256,180.11,180.09,0.06]
[1754755174852,86.61748592,180.1,180.09,0.06]
[1754755175928,6.53127035,180.1,180.09,0.06]
[1754755176116,45.51127035,180.1,180.09,0.06]
[1754755176317,51.06374119,180.1,180.09,0.06]
[1754755177421,5.82127035,180.1,180.09,0.06]
[1754755179938,6.53127035,180.1,180.09,0.06]
[1754755180116,5.82127035,180.1,180.09,0.75]
[1754755180530,5.82127035,180.1,180.09,0.06]
[1754755181042,6.53127035,180.1,180.09,0.06]
[1754755181416,5.82127035,180.1,180.09,0.06]
[1754755181847,44.56217254,180.11,180.09,0.06]
[1754755181848,39.01,180.11,180.09,0.06]
[1754755182044,5.82127035,180.1,180.09,0.75]
[1754755182753,44.83127035,180.11,180.09,0.75]
[1754755183044,0.03,180.11,180.09,6.3027243]
[1754755183244,0.03,180.11,180.09,11.43399465]
[1754755183542,0.03,180.11,180.1,6.51127035]
[1754755185440,0.03,180.11,180.1,12.06374119]
[1754755185627,0.03,180.11,180.1,6.24247084]
[1754755186645,0.03,180.11,180.1,12.06374119]
[1754755188948,0.03,180.11,180.1,14.28602519]
[1754755190449,0.03,180.11,180.1,12.06374119]
[1754755192838,0.03,180.11,180.1,12.12374119]
[1754755194857,0.03,180.11,180.1,6.30247084]
[1754755195048,0.03,180.11,180.1,5.61247084]
[1754755196142,0.03,180.11,180.1,6.30247084]
[1754755196348,0.03,180.11,180.1,5.61247084]
[1754755196876,0.03,180.11,180.1,12.12374119]
[1754755197032,0.03,180.15,180.11,15.10621557]
[1754755197238,0.03,180.15,180.14,5.82127035]
[1754755197745,0.03,180.15,180.14,0.69]
[1754755197937,0.03,180.15,180.13,5.82127035]
[1754755198956,0.03,180.15,180.14,5.55123792]
[1754755200067,0.03,180.15,180.13,5.5515461]
[1754755201155,0.03,180.15,180.14,6.48127035]
[1754755201355,0.03,180.15,180.14,0.66]
[1754755201661,6.54127035,180.15,180.11,15.10621557]
[1754755201846,0.03,180.15,180.11,15.76621557]
[1754755202047,0.03,180.15,180.12,0.66]
[1754755202656,0.03,180.15,180.11,20.92748592]
[1754755202837,0.03,180.15,180.12,0.66]
[1754755203039,0.03,180.15,180.13,38.96]
[1754755203236,5.82127035,180.14,180.11,15.10621557]
[1754755203441,6.51127035,180.13,180.11,15.10621557]
[1754755203735,5.82127035,180.14,180.1,70.57225549]
[1754755203935,5.82127035,180.13,180.1,44.57225549]
[1754755204135,5.82127035,180.13,180.1,45.23225549]
[1754755205057,5.82127035,180.14,180.11,0.66]
[1754755205655,6.51127035,180.14,180.1,44.57225549]
[1754755205848,5.82127035,180.12,180.1,39.02]
[1754755206161,5.82127035,180.11,180.1,0.06]
[1754755206459,5.82127035,180.12,180.1,0.06]
[1754755206772,5.82127035,180.14,180.1,6.27239616]
[1754755206942,5.82127035,180.13,180.1,6.27239616]
[1754755208942,6.51127035,180.13,180.1,6.27239616]
[1754755209142,5.82127035,180.13,180.1,6.27239616]
[1754755209848,5.82127035,180.14,180.11,0.66]
[1754755210667,0.03,180.15,180.12,0.66]
[1754755211570,5.85127035,180.15,180.13,5.5515461]
[1754755211950,5.85127035,180.15,180.14,0.66]
[1754755211951,0.03,180.15,180.14,0.66]
[1754755212268,0.03,180.15,180.14,45.44127035]
[1754755212846,0.03,180.15,180.14,39.62]
[1754755213873,0.03,180.15,180.14,45.17123792]
[1754755214450,0.03,180.15,180.14,44.51123792]
[1754755214866,6.54127035,180.15,180.14,38.96]
[1754755215067,6.54127035,180.15,180.13,5.55146851]
[1754755215255,5.85127035,180.15,180.13,5.55146851]
[1754755215460,0.03,180.15,180.13,5.55146851]
[1754755215975,0.72,180.15,180.12,44.5117913]
[1754755216153,5.82127035,180.14,180.12,44.5117913]
[1754755216775,0.03,180.15,180.12,45.1717913]
[1754755216776,5.85127035,180.15,180.12,45.1717913]
[1754755217171,5.85127035,180.15,180.13,0.66]
[1754755217978,5.85127035,180.15,180.13,6.21131761]
[1754755218581,0.03,180.15,180.13,5.55131761]
[1754755219885,0.03,180.15,180.13,6.21131761]
[1754755220486,0.03,180.15,180.13,5.55131761]
[1754755220692,0.03,180.15,180.14,0.66]
[1754755221887,0.03,180.15,180.14,6.21123792]
[1754755226760,0.03,180.15,180.14,5.55123792]
[1754755226961,0.72,180.15,180.14,5.55123792]
[1754755227168,0.03,180.15,180.14,5.55123792]
[1754755227698,0.03,180.15,180.14,12.03250827]
[1754755229588,0.03,180.15,180.14,27.13872384]
[1754755229894,1e-08,180.17,180.16,20.92748592]
[1754755230060,1e-08,180.17,180.16,59.86748592]
[1754755230260,1e-08,180.17,180.16,54.72621557]
[1754755230478,1e-08,180.17,180.16,66.09810758]
[1754755230981,1e-08,180.17,180.16,45.17062166]
[1754755231206,1e-08,180.17,180.16,66.09810758]
[1754755231372,1e-08,180.18,180.17,41.10621557]
[1754755231563,1e-08,180.18,180.17,48.16251727]
[1754755231985,1e-08,180.18,180.17,22.16251727]
[1754755232367,1e-08,180.18,180.17,27.71283086]
[1754755232787,0.03,180.2,180.17,33.53410121]
[1754755233080,1e-08,180.21,180.19,20.92748592]
[1754755233287,1e-08,180.21,180.2,45.3162093]
[1754755233457,1e-08,180.21,180.2,45.9962093]
[1754755233997,1e-08,180.22,180.21,41.10621557]
[1754755234292,1e-08,180.22,180.21,21.60748592]
[1754755234470,0.03,180.24,180.23,52.47595176]
[1754755234664,0.03,180.24,180.23,91.41595176]
[1754755234896,0.03,180.24,180.23,92.09595176]
[1754755235764,0.03,180.24,180.23,76.30973619]
[1754755236191,0.03,180.24,180.23,37.36973619]
[1754755236401,0.03,180.24,180.23,76.30973619]
[1754755237079,0.03,180.24,180.23,76.98973619]
[1754755237485,0.71,180.24,180.23,38.92]
[1754755238077,0.03,180.24,180.23,38.92]
[1754755238301,0.03,180.24,180.23,44.74127035]
[1754755238480,0.03,180.24,180.23,38.92]
[1754755238869,0.03,180.24,180.23,44.46846584]
[1754755240002,0.71,180.24,180.23,44.46846584]
[1754755240494,0.03,180.27,180.23,64.84090081]
[1754755240692,0.03,180.27,180.25,5.82127035]
[1754755240929,0.03,180.27,180.24,0.68]
[1754755240930,0.03,180.27,180.26,44.46754243]
[1754755242197,0.03,180.27,180.26,45.14754243]
[1754755242399,0.03,180.27,180.26,44.46754243]
[1754755242694,0.71,180.27,180.26,38.92]
[1754755243792,6.53127035,180.27,180.24,38.92]
[1754755243969,5.82127035,180.25,180.24,38.92]
[1754755244176,0.68,180.25,180.24,38.92]
[1754755244793,6.50127035,180.25,180.2,31.82127035]
[1754755244997,6.53127035,180.27,180.22,26.0]
[1754755245199,0.71,180.27,180.23,39.6]
[1754755245406,0.03,180.27,180.24,6.50127035]
[1754755245597,0.03,180.27,180.25,38.92]
[1754755246184,0.03,180.27,180.25,45.42127035]
[1754755246387,0.03,180.27,180.26,21.60748592]
[1754755246611,0.03,180.27,180.26,47.60748592]
[1754755246786,0.03,180.27,180.26,27.70978259]
[1754755247528,0.03,180.27,180.26,27.15502835]
[1754755247996,0.03,180.27,180.26,6.50127035]
[1754755248798,0.03,180.27,180.26,12.04881278]
[1754755249115,0.03,180.27,180.26,50.96881278]
[1754755249707,0.03,180.27,180.26,66.07502835]
[1754755251210,0.03,180.27,180.26,71.8962987]
[1754755251912,0.03,180.29,180.28,41.10621557]
[1754755252124,0.03,180.29,180.28,85.82748592]
[1754755252610,0.03,180.29,180.28,86.50748592]
[1754755253008,0.03,180.29,180.28,92.05441292]
[1754755255595,1e-08,180.3,180.28,92.05441292]
[1754755255813,1e-08,180.3,180.29,6.50127035]
[1754755257108,1e-08,180.3,180.29,12.04788968]
[1754755260324,1e-08,180.3,180.29,12.60255161]
[1754755262736,1e-08,180.3,180.29,27.70876718]
[1754755262903,0.03,180.32,180.31,26.0]
[1754755263239,1e-08,180.32,180.31,45.27587076]
[1754755263402,1e-08,180.33,180.32,15.10621557]
[1754755263606,1e-08,180.33,180.32,21.61748592]
[1754755264033,1e-08,180.34,180.32,21.61748592]
[1754755264327,1e-08,180.34,180.33,60.51748592]
[1754755264507,1e-08,180.34,180.33,66.06287492]
[1754755264702,1e-08,180.34,180.33,66.61741382]
[1754755265697,0.03,180.35,180.33,66.61741382]
[1754755265698,1e-08,180.35,180.34,15.10621557]
[1754755265938,1e-08,180.35,180.34,27.43875627]
[1754755266134,1e-08,180.35,180.34,15.79621557]
[1754755266345,1e-08,180.35,180.34,27.43875627]
[1754755266544,1e-08,180.35,180.34,32.98383778]
[1754755267043,0.1,180.4,180.34,74.57194912]
[1754755267243,0.1,180.4,180.39,20.92748592]
[1754755267542,0.1,180.4,180.39,59.84748592]
[1754755268242,0.1,180.4,180.39,65.39103046]
[1754755268608,0.1,180.4,180.39,66.08103046]
[1754755268806,1e-08,180.4,180.39,66.08103046]
[1754755271330,1e-08,180.4,180.39,65.37103046]
[1754755273023,0.69000001,180.4,180.39,54.00621557]
[1754755273231,0.69000001,180.4,180.39,59.54976011]
[1754755273412,0.69000001,180.4,180.39,59.82748592]
[1754755273617,0.69000001,180.4,180.39,65.37103046]
[1754755273940,1e-08,180.4,180.39,66.06103046]
[1754755274708,0.72,180.46,180.45,26.0]
[1754755274909,0.72,180.46,180.45,70.72127035]
[1754755275831,0.03,180.46,180.45,70.4417013]
[1754755276006,0.03,180.46,180.45,76.26297165]
[1754755276204,0.03,180.46,180.45,85.54791687]
[1754755276406,0.03,180.46,180.45,91.36918722]
[1754755276631,0.03,180.46,180.45,92.05918722]
[1754755276837,0.72,180.46,180.45,91.36918722]
[1754755278418,0.72,180.46,180.39,0.55435445]
[1754755278632,6.54127035,180.46,180.41,15.10621557]
[1754755278812,0.69,180.45,180.42,44.76127035]
[1754755279014,0.69,180.45,180.43,38.94]
[1754755280854,6.51127035,180.45,180.42,38.96]
[1754755281013,0.69,180.44,180.42,38.96]
[1754755281333,0.72,180.46,180.43,5.82127035]
[1754755281529,0.03,180.46,180.44,38.94]
[1754755281710,0.69,180.45,180.44,38.94]
[1754755282334,0.03,180.46,180.44,44.48200842]
[1754755282541,0.03,180.46,180.44,50.30327877]
[1754755282720,0.03,180.46,180.45,5.82127035]
[1754755283119,0.03,180.46,180.44,50.30327877]
[1754755283321,0.03,180.46,180.44,44.48200842]
[1754755283848,0.03,180.46,180.44,50.30327877]
[1754755284916,0.03,180.46,180.44,44.48200842]
[1754755285143,0.03,180.46,180.44,50.30327877]
[1754755285347,0.03,180.46,180.45,5.82127035]
[1754755286047,0.72,180.46,180.44,44.48200842]
[1754755286213,0.72,180.46,180.44,50.30327877]
[1754755286409,0.69,180.45,180.44,38.94]
[1754755286842,0.69,180.45,180.36,0.06]
[1754755286843,6.51127035,180.45,180.36,0.06]
[1754755287140,5.82127035,180.4,180.37,38.96]
[1754755287453,6.51127035,180.43,180.38,5.82127035]
[1754755287622,6.51127035,180.43,180.39,38.98]
[1754755287818,6.51127035,180.42,180.39,38.98]
[1754755288018,0.69,180.42,180.39,38.98]
[1754755288219,6.51127035,180.45,180.4,5.82127035]
[1754755288466,0.69,180.44,180.41,38.98]
[1754755288818,6.51127035,180.44,180.41,38.98]
[1754755289332,0.7,180.43,180.41,38.98]
[1754755289521,5.82127035,180.42,180.39,26.0]
[1754755289724,0.7,180.41,180.39,70.52353425]
[1754755289922,0.7,180.41,180.39,64.98]
[1754755291051,0.03,180.46,180.36,0.06]
[1754755291052,6.52127035,180.4,180.36,0.06]
[1754755291347,6.52127035,180.39,180.37,38.98]
[1754755291557,6.52127035,180.38,180.37,38.98]
[1754755292249,5.82127035,180.4,180.37,38.98]
[1754755292552,6.52127035,180.4,180.37,38.98]
[1754755293433,0.7,180.4,180.37,38.98]
[1754755294131,6.52127035,180.4,180.37,38.98]
[1754755294324,0.7,180.39,180.37,38.98]
[1754755294750,0.7,180.38,180.37,38.98]
[1754755295127,0.7,180.38,180.36,0.06]
[1754755295437,6.52127035,180.37,180.36,0.06]
[1754755295948,0.7,180.37,180.36,0.06]
[1754755296459,12.06542957,180.37,180.36,0.06]
[1754755296654,0.7,180.37,180.36,0.06]
[1754755296852,6.52127035,180.37,180.36,0.06]
[1754755297032,0.7,180.42,180.36,45.54127035]
[1754755297231,0.7,180.42,180.38,5.82127035]
[1754755297558,6.24207949,180.44,180.38,45.22384626]
[1754755297860,6.52127035,180.44,180.39,5.82127035]
[1754755298035,6.52127035,180.44,180.4,39.0]
[1754755298237,5.82127035,180.44,180.4,39.0]
[1754755298449,0.7,180.43,180.4,39.0]
[1754755299364,5.85127035,180.44,180.4,39.0]
[1754755299570,0.73,180.44,180.4,44.82127035]
[1754755299856,0.73,180.44,180.42,5.82127035]
[1754755299857,0.03,180.44,180.42,5.82127035]
[1754755300656,0.03,180.44,180.41,0.68]
[1754755300657,0.03,180.44,180.41,5.82127035]
[1754755300869,0.73,180.44,180.4,39.0]
[1754755301165,0.73,180.44,180.4,44.82127035]
[1754755301361,0.73,180.44,180.4,50.36440659]
[1754755301549,0.03,180.44,180.4,44.82127035]
[1754755301751,0.7,180.43,180.4,39.0]
[1754755301944,0.03,180.42,180.4,39.0]
[1754755302336,0.03,180.42,180.4,51.04447486]
[1754755302645,0.03,180.42,180.41,6.50127035]
[1754755304864,0.73,180.42,180.4,39.0]
[1754755306838,6.52127035,180.41,180.38,0.06]
[1754755307042,6.52127035,180.4,180.38,0.06]
[1754755307351,0.7,180.4,180.38,0.06]
[1754755307551,0.7,180.41,180.38,0.06]
[1754755307736,5.82127035,180.41,180.38,0.06]
[1754755307937,6.52127035,180.4,180.38,0.06]
[1754755308342,0.7,180.39,180.38,0.06]
[1754755308543,6.52127035,180.39,180.38,0.06]
[1754755309353,0.7,180.39,180.38,0.06]
[1754755309564,6.52127035,180.39,180.38,0.06]
[1754755310154,12.06481489,180.39,180.38,0.06]
[1754755312281,6.52127035,180.39,180.38,0.06]
[1754755312776,5.82127035,180.39,180.38,0.06]
[1754755313486,5.82127035,180.4,180.38,0.06]
[1754755313983,6.52127035,180.4,180.38,0.06]
[1754755314284,5.82127035,180.39,180.38,0.06]
[1754755315184,6.52127035,180.39,180.38,0.06]
[1754755319994,12.06481489,180.39,180.38,0.06]
[1754755320194,5.82127035,180.39,180.38,0.06]
[1754755320692,12.05481489,180.39,180.38,0.06]
[1754755320998,15.10621557,180.38,180.36,0.06]
[1754755321193,5.82127035,180.37,180.36,0.06]
[1754755321365,27.16164514,180.37,180.36,0.06]
[1754755322388,197.62514118,180.38,180.36,0.06]
[1754755322700,192.08127035,180.38,180.36,0.06]
[1754755322986,38.96,180.38,180.36,0.06]
[1754755323190,38.96,180.41,180.37,0.66]
[1754755323372,0.03,180.42,180.38,0.66]
[1754755323572,0.03,180.42,180.39,5.82127035]
[1754755323778,0.03,180.42,180.4,5.82127035]
[1754755324497,0.03,180.42,180.41,0.66]
[1754755325969,0.03,180.42,180.39,9.46409692]
[1754755326175,0.03,180.42,180.4,0.66]
[1754755326407,0.03,180.42,180.41,0.66]
[1754755326698,0.03,180.42,180.41,10.12409692]
[1754755327795,0.03,180.42,180.41,15.66702691]
[1754755330576,0.03,180.42,180.41,30.77324248]
[1754755331366,0.03,180.42,180.41,31.32753547]
[1754755331590,1e-08,180.42,180.41,31.32753547]
[1754755333575,1e-08,180.42,180.41,30.77324248]
[1754755333775,1e-08,180.42,180.41,15.66702691]
[1754755333975,1e-08,180.42,180.41,54.62702691]
[1754755334888,1e-08,180.42,180.41,44.50292999]
[1754755335288,1e-08,180.42,180.41,53.96702691]
[1754755335486,1e-08,180.42,180.41,54.62702691]
[1754755335689,1e-08,180.42,180.41,69.73324248]
[1754755336277,0.03,180.44,180.43,41.10621557]
[1754755336479,0.03,180.44,180.43,50.57031249]
[1754755336684,0.03,180.44,180.43,51.23031249]
[1754755337398,0.03,180.44,180.43,56.77262806]
[1754755337594,0.03,180.44,180.43,70.54231557]
[1754755338104,0.03,180.44,180.43,80.66641249]
[1754755339300,0.03,180.44,180.4,26.0]
[1754755339500,0.03,180.44,180.41,39.0]
[1754755339711,0.03,180.44,180.41,39.66]
[1754755340490,0.03,180.44,180.42,5.54262276]
[1754755341805,0.03,180.44,180.42,15.00671968]
[1754755342012,0.03,180.44,180.43,0.66]
[1754755342195,0.03,180.44,180.42,5.54262276]
[1754755342399,0.03,180.44,180.42,6.20262276]
[1754755342796,0.03,180.44,180.43,0.66]
[1754755343000,0.03,180.44,180.42,5.54262276]
[1754755343699,0.03,180.44,180.41,44.54285321]
[1754755344410,10.15409692,180.43,180.41,39.0]
[1754755344822,10.15409692,180.43,180.39,70.56332785]
[1754755345318,0.03,180.44,180.39,65.02]
[1754755345319,9.46409692,180.41,180.39,65.02]
[1754755345619,9.46409692,180.43,180.39,71.2234528]
[1754755346205,9.46409692,180.43,180.41,0.06]
[1754755347509,10.15409692,180.43,180.41,0.06]
[1754755347807,9.46409692,180.43,180.41,0.06]
[1754755348007,10.15409692,180.42,180.41,0.06]
[1754755348404,9.46409692,180.42,180.41,0.06]
[1754755348794,5.80884269,180.42,180.41,0.06]
[1754755349121,6.45884269,180.42,180.41,0.06]
[1754755349619,12.00146545,180.42,180.41,0.06]
[1754755350707,15.66242965,180.42,180.41,0.06]
[1754755354422,9.46980689,180.42,180.41,0.06]
[1754755354624,0.03,180.44,180.41,0.75]
[1754755354808,0.03,180.44,180.42,0.69]
[1754755355708,9.49980689,180.44,180.42,0.69]
[1754755356047,9.46980689,180.43,180.41,0.06]
[1754755356803,5.57202126,180.44,180.41,0.06]
[1754755356804,10.11980689,180.42,180.41,0.06]
[1754755357195,9.46980689,180.42,180.41,0.06]
[1754755358516,0.03,180.44,180.41,0.75]
[1754755358739,0.03,180.44,180.42,0.69]
[1754755359439,9.49980689,180.44,180.41,0.06]
[1754755359736,9.46980689,180.43,180.41,0.06]
[1754755362024,9.46980689,180.42,180.41,0.06]
[1754755362730,9.49980689,180.44,180.41,0.75]
[1754755362939,9.49980689,180.44,180.41,0.06]
[1754755363130,9.49980689,180.44,180.42,0.69]
[1754755363745,9.46980689,180.43,180.41,0.06]
[1754755364123,0.03,180.44,180.42,0.69]
[1754755364317,0.03,180.44,180.43,0.69]
[1754755364941,0.03,180.44,180.43,10.15980689]
[1754755365839,0.03,180.44,180.43,25.26602246]
[1754755366238,0.03,180.44,180.43,30.80833803]
[1754755368625,0.03,180.44,180.43,15.70212246]
[1754755369027,0.03,180.44,180.43,39.0]
[1754755370249,0.03,180.44,180.41,15.76271183]
[1754755370546,0.03,180.44,180.41,54.76271183]
[1754755371059,0.03,180.44,180.42,9.46980689]
[1754755371354,0.03,180.44,180.42,10.15980689]
[1754755371533,0.03,180.44,180.43,15.70212246]
[1754755371847,0.03,180.44,180.43,38.98]
[1754755372447,0.03,180.44,180.42,0.69]
[1754755372448,9.49980689,180.44,180.41,44.66289201]
[1754755372648,5.83766564,180.44,180.41,44.66289201]
[1754755373147,0.03,180.44,180.41,44.66289201]
[1754755373329,0.03,180.44,180.41,45.35289201]
[1754755373850,0.03,180.44,180.41,39.12]
[1754755374024,5.80766564,180.43,180.41,39.12]
[1754755374224,6.45766564,180.43,180.41,39.12]
[1754755374423,5.80766564,180.42,180.41,0.06]
[1754755374853,6.45766564,180.42,180.41,0.06]
[1754755376106,5.80766564,180.43,180.41,0.06]
[1754755379858,5.80766564,180.42,180.41,0.06]
[1754755380062,6.51766564,180.42,180.41,0.06]
[1754755380537,0.71,180.42,180.41,0.06]
[1754755380735,12.0602884,180.42,180.41,0.06]
[1754755380939,5.80766564,180.4,180.39,0.06]
[1754755381141,26.0,180.38,180.37,0.06]
[1754755381445,26.0,180.38,180.33,0.06]
[1754755381446,26.0,180.37,180.33,0.06]
[1754755381639,31.80766564,180.34,180.33,0.06]
[1754755381958,35.49175074,180.34,180.33,0.06]
[1754755382158,35.93916661,180.34,180.33,0.06]
[1754755382358,41.74683225,180.34,180.33,0.06]
[1754755382664,41.03683225,180.34,180.33,0.06]
[1754755382866,3.6840851,180.34,180.33,0.06]
[1754755383159,9.49175074,180.34,180.33,0.06]
[1754755383671,10.20175074,180.34,180.33,0.06]
[1754755383858,9.49175074,180.34,180.33,0.06]
[1754755384261,5.80766564,180.34,180.33,0.06]
[1754755384669,15.74449597,180.34,180.33,0.06]
[1754755386553,30.85071154,180.34,180.33,0.06]
[1754755390056,15.03449597,180.34,180.33,0.06]
[1754755390475,39.1,180.35,180.33,0.74]
[1754755390863,5.80766564,180.36,180.33,0.74]
[1754755391061,5.80766564,180.36,180.34,0.68]
[1754755391264,5.80766564,180.36,180.35,0.68]
[1754755392261,39.14,180.38,180.35,0.68]
[1754755392776,44.94766564,180.38,180.36,0.68]
[1754755393358,5.80766564,180.37,180.33,5.86766564]
[1754755393559,5.80766564,180.37,180.34,0.68]
[1754755393761,5.80766564,180.37,180.35,0.68]
[1754755394670,9.47214861,180.37,180.35,0.68]
[1754755394850,9.47214861,180.36,180.33,0.74]
[1754755395048,9.47214861,180.36,180.34,0.68]
[1754755396975,9.47214861,180.36,180.33,0.06]
[1754755397164,9.47214861,180.36,180.35,0.68]
[1754755398169,44.68392735,180.38,180.35,0.68]
[1754755398170,48.61214861,180.38,180.35,0.68]
[1754755398370,54.15600778,180.38,180.35,0.68]
[1754755398978,9.47214861,180.36,180.33,0.74]
[1754755399177,44.68385917,180.38,180.33,0.74]
[1754755399178,0.71,180.37,180.33,0.06]
[1754755399462,9.47214861,180.34,180.33,0.06]
[1754755400980,15.72723012,180.34,180.33,0.06]
[1754755401368,9.47214861,180.34,180.33,0.06]
[1754755402882,15.01723012,180.34,180.33,0.06]
[1754755403184,15.72723012,180.34,180.33,0.06]
[1754755403490,30.83344569,180.34,180.33,0.06]
[1754755403777,34.50296876,180.34,180.33,0.06]
[1754755404658,9.47214861,180.34,180.33,0.06]
[1754755404857,39.08,180.35,180.33,0.06]
[1754755405080,9.47214861,180.34,180.33,0.06]
[1754755405589,9.47214861,180.34,180.33,0.74]
[1754755405885,48.55214861,180.35,180.33,0.74]
[1754755406268,48.55214861,180.35,180.34,0.68]
[1754755406660,48.55214861,180.35,180.33,0.06]
[1754755406870,9.47214861,180.34,180.33,0.74]
[1754755408363,9.47214861,180.34,180.33,0.06]
[1754755410173,9.47214861,180.34,180.33,0.77]
[1754755411266,48.55214861,180.35,180.33,0.77]
[1754755411465,0.03,180.36,180.33,15.78740576]
[1754755411864,0.03,180.36,180.34,0.71]
[1754755412496,0.03,180.36,180.34,10.18214861]
[1754755412667,0.03,180.36,180.34,0.71]
[1754755412863,0.03,180.36,180.35,0.71]
[1754755413667,0.03,180.36,180.33,5.60525715]
[1754755413884,0.03,180.36,180.35,0.71]
[1754755416770,0.03,180.36,180.35,6.25477405]
[1754755416970,0.03,180.36,180.35,0.71]
[1754755418196,0.03,180.36,180.35,6.25477405]
[1754755418398,0.03,180.36,180.35,12.06709605]
[1754755419083,0.03,180.36,180.35,38.06709605]
[1754755419803,0.03,180.36,180.35,6.25477405]
[1754755420103,0.03,180.36,180.35,12.06709605]
[1754755421127,0.03,180.36,180.35,27.17331162]
[1754755421479,0.03,180.36,180.35,66.23331162]
[1754755423896,0.03,180.36,180.35,77.12709605]
[1754755424373,0.03,180.36,180.35,45.31477405]
[1754755424574,0.03,180.36,180.35,44.60477405]
[1754755424881,0.03,180.36,180.34,5.54504832]
[1754755425087,0.03,180.36,180.34,6.25504832]
[1754755426376,5.842322,180.36,180.33,5.60533378]
[1754755426606,5.842322,180.36,180.33,6.31533378]
[1754755426799,0.03,180.36,180.34,0.71]
[1754755427174,5.842322,180.36,180.33,0.06]
[1754755427381,0.03,180.36,180.34,0.71]
[1754755428114,0.03,180.36,180.33,5.60538739]
[1754755428313,0.03,180.36,180.34,0.71]
[1754755429796,0.03,180.36,180.35,0.71]
[1754755430006,0.03,180.36,180.34,0.71]
[1754755431913,0.03,180.36,180.34,6.25492025]
[1754755432090,0.03,180.36,180.35,0.71]
[1754755432606,0.03,180.36,180.35,6.522322]
[1754755432995,0.03,180.36,180.35,12.06709605]
[1754755434007,0.03,180.36,180.35,5.54477405]
[1754755434509,0.03,180.36,180.35,6.25477405]
[1754755434809,0.03,180.36,180.35,5.54477405]
[1754755435127,0.03,180.36,180.34,5.6050699]
[1754755435916,0.03,180.36,180.34,0.06]
[1754755437216,6.542322,180.36,180.34,0.06]
[1754755437610,10.20130317,180.35,180.34,0.06]
[1754755439099,15.74607722,180.35,180.34,0.06]
[1754755439418,9.93375522,180.35,180.34,0.06]
[1754755439598,15.04607722,180.35,180.34,0.06]
[1754755440723,15.76607722,180.35,180.34,0.06]